fUST/lending_fUST_20240623
["ID","MTS","AMOUNT","RATE_DAILY","PERIOD"]
[330190836,1719091832714,-267.9527671,0.00017299,7]
[330190837,1719091832725,-876.0,0.0001739,2]
[330190838,1719091832736,-391.3,0.00017534,2]
[330190839,1719091832745,-151.0,0.00017534,2]
[330190840,1719091832755,-153.0,0.00017726,2]
[330190841,1719091832764,-153.0,0.00017726,2]
[330190842,1719091832775,-153.0,0.00017726,2]
[330190843,1719091832784,-153.0,0.00017726,2]
[330190844,1719091832793,-391.3,0.00017808,2]
[330190845,1719091832803,-151.0,0.00017808,2]
[330190846,1719091832812,-4662.18157464,0.00017979,2]
[330190847,1719091832822,-16454.98937512,0.00018,2]
[330190865,1719091838492,-6986.23838379,0.00018,2]
[330190866,1719091838505,-1025.39492162,0.00018,2]
[330190867,1719091838517,-1847.64465184,0.00018,2]
[330190868,1719091838529,-16195.06265843,0.00018,2]
[330190869,1719091838558,-63876.29955398,0.00018,2]
[330190877,1719091841010,-23985.26766813,0.00018,2]
[330190879,1719091841023,-5226.43722565,0.00018,2]
[330190904,1719091874932,518.19,0.00010959,2]
[330190923,1719092194678,895.86033165,0.00013283,2]
[330190955,1719093034381,-386.25904064,0.00015883,7]
[330190956,1719093034391,-196.61340591,0.00016338,2]
[330190957,1719093034401,-175.58501854,0.00016376,2]
[330190984,1719093039528,-124.41498146,0.00016376,2]
[330190985,1719093039537,-4604.67748692,0.00016377,2]
[330190987,1719093039549,-1237.14096931,0.00016377,2]
[330191111,1719094233264,-1021.73274137,0.00015002,2]
[330191129,1719094233421,-300.0,0.00015784,2]
[330191131,1719094233434,-87.8947542,0.00015785,2]
[330191133,1719094233447,-9940.70350962,0.00015785,2]
[330191151,1719094238062,-506.0710889,0.00015785,2]
[330191455,1719094553991,1127.93,0.00026,60]
[330191456,1719094568895,845.95,0.00026,60]
[330191457,1719094584080,500.0,0.00026,60]
[330191458,1719094595830,500.0,0.00026,60]
[330191459,1719094604905,500.0,0.00026,60]
[330191460,1719094614747,500.0,0.00026,60]
[330191461,1719094637442,537.859,0.00026,60]
[330191739,1719096025255,216.64811345,0.00014096,2]
[330191760,1719096632394,-154.83742071,0.00014101,2]
[330191761,1719096632403,-3124.78288904,0.00014641,4]
[330191762,1719096632413,-2824.23165146,0.00015,2]
[330191763,1719096632422,-238.354229,0.00015387,2]
[330191764,1719096632432,-300.0,0.00015442,2]
[330191765,1719096632441,-300.0,0.00015442,2]
[330191766,1719096632451,-13783.5113137,0.00015443,2]
[330191767,1719096632460,-628.65441611,0.00015588,2]
[330191768,1719096632469,-839.43938696,0.00015883,2]
[330191769,1719096632479,-1054.40306664,0.00016478,2]
[330191770,1719096632488,-151.0,0.00016478,2]
[330191771,1719096632497,-704.3,0.0001659,2]
[330191772,1719096632506,-246.7,0.0001659,2]
[330191773,1719096632515,-624.497788,0.00016789,2]
[330191774,1719096632524,-704.3,0.00016816,2]
[330191775,1719096632537,-246.7,0.00016816,2]
[330191776,1719096632546,-1054.40306661,0.00016834,2]
[330191777,1719096632555,-221.0,0.00016893,2]
[330191778,1719096632564,-480.03572154,0.00016899,2]
[330191779,1719096632575,-565.63257972,0.00016899,2]
[330191780,1719096632584,-943.15825971,0.000169,2]
[330191781,1719096632593,-420.0,0.00016986,2]
[330191782,1719096632602,-986.82555939,0.00016999,2]
[330191938,1719097126137,183.0,2.43e-05,28]
[330191939,1719097484699,273.14461243,5e-05,2]
[330191940,1719097529139,1583.19802264,0.0001,2]
[330192026,1719097838782,-3000.0,0.00014831,2]
[330192027,1719097838792,-984.10952885,0.00015503,2]
[330192028,1719097838802,-300.0,0.00015521,2]
[330192029,1719097838811,-300.0,0.00015521,2]
[330192030,1719097838820,-11132.5828697,0.00015522,2]
[330192031,1719097838830,-24068.1051857,0.00015563,2]
[330192032,1719097838839,-177.232403,0.00015603,2]
[330192033,1719097838849,-3124.78288904,0.00015722,4]
[330192034,1719097838859,-2824.23165146,0.00015838,2]
[330192035,1719097838869,-2824.23165146,0.00015838,2]
[330192036,1719097838878,-902.93775555,0.00016,2]
[330192037,1719097838888,-839.43938696,0.00016001,2]
[330192038,1719097838897,-984.10952884,0.0001609,2]
[330192039,1719097838907,-154.83742071,0.00016131,2]
[330192040,1719097838916,-151.0,0.00016132,2]
[330192041,1719097838925,-198.0,0.00016192,2]
[330192042,1719097838935,-586.9,0.00016622,2]
[330192043,1719097838944,-205.6,0.00016622,2]
[330192044,1719097838953,-984.10952884,0.00016676,2]
[330192045,1719097838963,-156.42609512,0.00016829,2]
[330192046,1719097838973,-586.9,0.00016845,2]
[330192047,1719097838983,-205.6,0.00016845,2]
[330192048,1719097838993,-6014.49544863,0.00016999,2]
[330192049,1719097839003,-5000.0,0.00016999,2]
[330192050,1719097839013,-876.0,0.0001701,2]
[330192051,1719097839023,-586.9,0.00017068,2]
[330192052,1719097839035,-205.6,0.00017068,2]
[330192053,1719097839045,-420.0,0.00017073,2]
[330192054,1719097839054,-323.5556165,0.0001726,2]
[330192055,1719097839064,-153.0,0.0001726,2]
[330192056,1719097839074,-984.10952884,0.00017263,2]
[330192057,1719097839084,-586.9,0.00017292,2]
[330192058,1719097839094,-205.6,0.00017292,2]
[330192059,1719097839105,-586.9,0.00017515,2]
[330192060,1719097839117,-205.6,0.00017515,2]
[330192061,1719097839127,-586.9,0.00017738,2]
[330192062,1719097839137,-205.6,0.00017738,2]
[330192063,1719097839147,-636.15791299,0.00017745,2]
[330192064,1719097839157,-984.10952884,0.00017849,2]
[330192065,1719097839167,-2000.0,0.00017876,2]
[330192066,1719097839176,-88888.0,0.00017876,2]
[330192067,1719097839186,-586.9,0.00017962,2]
[330192068,1719097839196,-205.6,0.00017962,2]
[330192069,1719097839206,-234818.50347996,0.00017976,2]
[330192385,1719099349137,-1000.0,0.00021,21]
[330192390,1719099397274,-1000.0,0.00022,22]
[330192410,1719099619422,664.50328466,0.00014096,2]
[330192413,1719099737766,-839.43938696,0.00014101,2]
[330192414,1719099737787,-154.82195475,0.00014109,2]
[330192415,1719099737815,154.82195475,0.00014106,2]
[330192498,1719100570811,1009.93258169,0.00014106,2]
[330192499,1719100599798,1009.93258169,0.00014106,2]
[330192500,1719100711853,561.0736565,0.00014106,2]
[330192501,1719100784538,-379.97788366,0.00016001,2]
[330192502,1719100870929,800.0,9.622e-05,2]
[330192503,1719100872711,800.0,0.00010444,2]
[330192504,1719100874338,800.0,0.00011266,2]
[330192505,1719100875969,800.0,0.00012088,2]
[330192506,1719100877583,800.0,0.0001291,2]
[330192507,1719100931123,292.31937503,0.0001291,2]
[330192508,1719101020843,292.31937503,0.0001291,2]
[330192510,1719101124838,292.31937503,0.0001291,2]
[330192511,1719101132843,292.31937503,0.0001291,2]
[330192512,1719101252850,292.31937503,0.0001291,2]
[330192513,1719101353075,292.31937503,0.0001291,2]
[330192514,1719101382857,292.31937503,0.0001291,2]
[330192529,1719101432101,-534.87830761,0.00014554,2]
[330192537,1719101432164,-265.12169239,0.00014554,2]
[330192539,1719101432173,-839.43938696,0.00015302,2]
[330192541,1719101432182,-154.82195475,0.00015439,2]
[330192543,1719101432191,-216.64811345,0.00015883,2]
[330192545,1719101432200,-2548.69968881,0.00015934,2]
[330192547,1719101432214,-800.0,0.00016198,2]
[330192549,1719101432223,-1300.47344764,0.00016525,4]
[330192551,1719101432233,-421.76122665,0.0001671,2]
[330192553,1719101432242,-480.03572154,0.00016711,2]
[330192555,1719101432251,-153.0,0.00016752,2]
[330192557,1719101432260,-361.9,0.00016805,2]
[330192559,1719101432269,-565.63257972,0.00016809,2]
[330192561,1719101432278,-300.0,0.0001681,2]
[330192563,1719101432287,-221.0,0.0001681,2]
[330192565,1719101432297,-445.0,0.00016811,2]
[330192567,1719101432306,-445.0,0.00016811,2]
[330192569,1719101432315,-445.0,0.00016811,2]
[330192571,1719101432324,-445.0,0.00016811,2]
[330192573,1719101432333,-445.0,0.00016811,2]
[330192575,1719101432342,-445.0,0.00016811,2]
[330192577,1719101432352,-445.0,0.00016811,2]
[330192579,1719101432361,-445.0,0.00016811,2]
[330192581,1719101432370,-445.0,0.00016811,2]
[330192582,1719101432380,-445.0,0.00016811,2]
[330192583,1719101432389,-445.0,0.00016811,2]
[330192585,1719101432399,-445.0,0.00016811,2]
[330192586,1719101432409,-445.0,0.00016811,2]
[330192587,1719101432418,-445.0,0.00016811,2]
[330192588,1719101432426,-445.0,0.00016811,2]
[330192589,1719101432435,-445.0,0.00016811,2]
[330192590,1719101432445,-445.0,0.00016811,2]
[330192591,1719101432454,-445.0,0.00016811,2]
[330192592,1719101432464,-445.0,0.00016811,2]
[330192593,1719101432473,-445.0,0.00016811,2]
[330192594,1719101432482,-445.0,0.00016811,2]
[330192595,1719101432491,-445.0,0.00016811,2]
[330192596,1719101432500,-445.0,0.00016811,2]
[330192597,1719101432512,-445.0,0.00016811,2]
[330192598,1719101432522,-445.0,0.00016811,2]
[330192599,1719101432532,-445.0,0.00016811,2]
[330192600,1719101432541,-445.0,0.00016811,2]
[330192601,1719101432552,-445.0,0.00016811,2]
[330192602,1719101432561,-445.0,0.00016811,2]
[330192603,1719101432569,-445.0,0.00016811,2]
[330192604,1719101432578,-445.0,0.00016811,2]
[330192605,1719101432587,-445.0,0.00016811,2]
[330192606,1719101432599,-445.0,0.00016811,2]
[330192607,1719101432608,-445.0,0.00016811,2]
[330192608,1719101432619,-445.0,0.00016811,2]
[330192609,1719101432629,-445.0,0.00016811,2]
[330192610,1719101432639,-277.92854998,0.00016811,2]
[330192752,1719101463543,500.0,0.00012636,2]
[330192753,1719101497869,292.31937503,0.00012636,2]
[330192754,1719101594862,292.31937503,0.00012636,2]
[330192755,1719101613673,-380.0,0.0001428,2]
[330193224,1719102736725,13763.5113137,0.00014063,2]
[330193237,1719102866504,398.9233698,0.00014063,2]
[330193241,1719102938214,216.64811345,0.00014096,2]
[330193251,1719103328365,839.43938696,0.00014096,2]
[330193252,1719103343474,154.80649189,0.00014096,2]
[330193300,1719103832583,-120.0,0.0001428,2]
[330193302,1719103832592,-2824.23165146,0.00015002,2]
[330193304,1719103832601,-3124.78288904,0.00015009,4]
[330193306,1719103832611,-238.354229,0.00015389,2]
[330193309,1719103832620,-500.0,0.00015924,2]
[330193312,1719103832630,-927.80824237,0.00015974,2]
[330193315,1719103832639,-412.60773024,0.00016508,2]
[330193317,1719103832648,-300.0,0.00016603,2]
[330193318,1719103832658,-300.0,0.00016603,2]
[330193320,1719103832668,-624.497788,0.00016604,2]
[330193322,1719103832677,-278.0,0.00016604,2]
[330193323,1719103832687,-278.0,0.00016604,2]
[330193325,1719103832697,-278.0,0.00016604,2]
[330193326,1719103832706,-278.0,0.00016604,2]
[330193328,1719103832715,-278.0,0.00016604,2]
[330193330,1719103832724,-278.0,0.00016604,2]
[330193332,1719103832734,-278.0,0.00016604,2]
[330193334,1719103832743,-278.0,0.00016604,2]
[330193336,1719103832752,-278.0,0.00016604,2]
[330193338,1719103832761,-278.0,0.00016604,2]
[330193339,1719103832771,-278.0,0.00016604,2]
[330193340,1719103832780,-278.0,0.00016604,2]
[330193341,1719103832790,-278.0,0.00016604,2]
[330193342,1719103832800,-278.0,0.00016604,2]
[330193343,1719103832810,-278.0,0.00016604,2]
[330193344,1719103832819,-278.0,0.00016604,2]
[330193345,1719103832830,-278.0,0.00016604,2]
[330193346,1719103832840,-278.0,0.00016604,2]
[330193347,1719103832850,-278.0,0.00016604,2]
[330193348,1719103832860,-278.0,0.00016604,2]
[330193349,1719103832871,-278.0,0.00016604,2]
[330193350,1719103832881,-278.0,0.00016604,2]
[330193351,1719103832893,-278.0,0.00016604,2]
[330193352,1719103832903,-278.0,0.00016604,2]
[330193353,1719103832914,-278.0,0.00016604,2]
[330193354,1719103832923,-278.0,0.00016604,2]
[330193355,1719103832932,-278.0,0.00016604,2]
[330193356,1719103832941,-278.0,0.00016604,2]
[330193357,1719103832951,-278.0,0.00016604,2]
[330193358,1719103832970,-278.0,0.00016604,2]
[330193359,1719103832982,-278.0,0.00016604,2]
[330193360,1719103832991,-278.0,0.00016604,2]
[330193361,1719103833001,-278.0,0.00016604,2]
[330193362,1719103833011,-278.0,0.00016604,2]
[330193363,1719103833022,-278.0,0.00016604,2]
[330193364,1719103833032,-2646.74126199,0.00016607,2]
[330193365,1719103833042,-278.0,0.00016608,2]
[330193366,1719103833053,-278.0,0.00016608,2]
[330193367,1719103833062,-278.0,0.00016608,2]
[330193368,1719103833072,-278.0,0.00016608,2]
[330193369,1719103833083,-278.0,0.00016608,2]
[330193370,1719103833093,-278.0,0.00016608,2]
[330193371,1719103833103,-278.0,0.00016608,2]
[330193372,1719103833114,-278.0,0.00016608,2]
[330193373,1719103833124,-278.0,0.00016608,2]
[330193374,1719103833134,-278.0,0.00016608,2]
[330193375,1719103833144,-278.0,0.00016608,2]
[330193376,1719103833154,-278.0,0.00016608,2]
[330193377,1719103833164,-278.0,0.00016608,2]
[330193378,1719103833174,-278.0,0.00016608,2]
[330193379,1719103833184,-278.0,0.00016608,2]
[330193380,1719103833193,-278.0,0.00016608,2]
[330193381,1719103833207,-278.0,0.00016608,2]
[330193382,1719103833217,-278.0,0.00016608,2]
[330193383,1719103833226,-278.0,0.00016608,2]
[330193384,1719103833236,-278.0,0.00016608,2]
[330193385,1719103833250,-278.0,0.00016608,2]
[330193386,1719103833259,-278.0,0.00016608,2]
[330193387,1719103833269,-278.0,0.00016608,2]
[330193388,1719103833278,-278.0,0.00016608,2]
[330193389,1719103833289,-278.0,0.00016608,2]
[330193390,1719103833299,-278.0,0.00016608,2]
[330193391,1719103833309,-2.95525512,0.00016608,2]
[330193415,1719103838427,-275.04474488,0.00016608,2]
[330193416,1719103838437,-161.80304205,0.00016608,2]
[330194923,1719103866299,500.0,0.00014006,2]
[330194928,1719104798168,1111.0,0.00025999,60]
[330195112,1719105301988,10000.0,0.00025,120]
[330195113,1719105317147,10000.0,0.00021192,90]
[330195114,1719105334372,10000.0,0.00026,60]
[330195115,1719105350216,10000.0,0.000225,30]
[330195116,1719105366570,10000.0,0.00025,120]
[330195117,1719105381737,8801.77,0.00021192,90]
[330195118,1719105968408,155.0,0.000225,30]
[330195119,1719105973110,155.0,0.000225,30]
[330195120,1719105977621,155.0,0.000225,30]
[330195121,1719105982378,155.0,0.000225,30]
[330195122,1719105986859,155.0,0.000225,30]
[330195123,1719105991671,155.0,0.000225,30]
[330195124,1719105996232,155.0,0.000225,30]
[330195125,1719106001098,155.0,0.000225,30]
[330195126,1719106006097,155.0,0.000225,30]
[330195127,1719106010756,155.0,0.000225,30]
[330195128,1719106015222,155.0,0.000225,30]
[330195129,1719106020437,155.0,0.000225,30]
[330195130,1719106024985,249.36200391,0.000225,30]
[330195131,1719106137154,705.58178986,0.00014047,2]
[330195166,1719106232382,-839.50821258,0.0001414,2]
[330195167,1719106232392,-154.80649189,0.00014279,2]
[330195169,1719106232401,-932.77189747,0.00015116,2]
[330195170,1719106232411,-500.0,0.0001565,2]
[330195172,1719106232420,-635.39041212,0.00015934,2]
[330195173,1719106232430,-300.0,0.00016583,2]
[330195175,1719106232439,-153.0,0.00016584,2]
[330195177,1719106232451,-153.0,0.00016584,2]
[330195179,1719106232459,-153.0,0.00016584,2]
[330195181,1719106232469,-153.0,0.00016584,2]
[330195183,1719106232479,-153.0,0.00016584,2]
[330195185,1719106232489,-153.0,0.00016584,2]
[330195187,1719106232498,-153.0,0.00016584,2]
[330195189,1719106232508,-153.0,0.00016584,2]
[330195191,1719106232517,-153.0,0.00016584,2]
[330195192,1719106232526,-153.0,0.00016612,2]
[330195193,1719106232535,-153.0,0.00016612,2]
[330195194,1719106232544,-153.0,0.00016612,2]
[330195195,1719106232554,-153.0,0.00016612,2]
[330195196,1719106232564,-153.0,0.00016612,2]
[330195197,1719106232574,-153.0,0.00016612,2]
[330195198,1719106232584,-153.0,0.00016612,2]
[330195199,1719106232593,-153.0,0.00016612,2]
[330195200,1719106232603,-153.0,0.00016612,2]
[330195201,1719106232612,-153.0,0.00016612,2]
[330195202,1719106232622,-153.0,0.00016612,2]
[330195203,1719106232632,-153.0,0.00016612,2]
[330195204,1719106232641,-153.0,0.00016612,2]
[330195205,1719106232650,-153.0,0.00016612,2]
[330195206,1719106232660,-153.0,0.00016612,2]
[330195207,1719106232670,-153.0,0.00016612,2]
[330195208,1719106232679,-153.0,0.00016612,2]
[330195209,1719106232688,-153.0,0.00016612,2]
[330195210,1719106232698,-153.0,0.00016612,2]
[330195211,1719106232707,-153.0,0.00016612,2]
[330195212,1719106232716,-153.0,0.00016612,2]
[330195213,1719106232725,-153.0,0.00016612,2]
[330195214,1719106232734,-153.0,0.00016612,2]
[330195215,1719106232744,-156.42609513,0.00016642,2]
[330195216,1719106232753,-153.0,0.00016718,2]
[330195217,1719106232762,-153.0,0.00016718,2]
[330195218,1719106232771,-153.0,0.00016718,2]
[330195219,1719106232780,-153.0,0.00016718,2]
[330195220,1719106232790,-153.0,0.00016718,2]
[330195221,1719106232799,-153.0,0.00016718,2]
[330195222,1719106232809,-153.0,0.00016718,2]
[330195223,1719106232820,-153.0,0.00016718,2]
[330195224,1719106232829,-153.0,0.00016718,2]
[330195225,1719106232839,-153.0,0.00016718,2]
[330195226,1719106232849,-153.0,0.00016718,2]
[330195227,1719106232858,-153.0,0.00016718,2]
[330195228,1719106232868,-153.0,0.00016718,2]
[330195229,1719106232878,-153.0,0.00016718,2]
[330195230,1719106232888,-153.0,0.00016718,2]
[330195231,1719106232898,-153.0,0.00016718,2]
[330195232,1719106232907,-153.0,0.00016718,2]
[330195233,1719106232916,-153.0,0.00016718,2]
[330195234,1719106232925,-153.0,0.00016718,2]
[330195235,1719106232934,-153.0,0.00016718,2]
[330195236,1719106232944,-153.0,0.00016718,2]
[330195237,1719106232953,-153.0,0.00016718,2]
[330195238,1719106232963,-153.0,0.00016718,2]
[330195239,1719106232973,-153.0,0.00016718,2]
[330195240,1719106232982,-153.0,0.00016718,2]
[330195241,1719106232991,-620.76952061,0.00016731,2]
[330195242,1719106233001,-153.0,0.00016749,2]
[330195243,1719106233011,-153.0,0.00016749,2]
[330195244,1719106233022,-153.0,0.00016749,2]
[330195245,1719106233031,-153.0,0.00016749,2]
[330195246,1719106233041,-153.0,0.00016749,2]
[330195247,1719106233050,-153.0,0.00016749,2]
[330195248,1719106233060,-153.0,0.00016749,2]
[330195249,1719106233069,-153.0,0.00016749,2]
[330195250,1719106233079,-153.0,0.00016749,2]
[330195251,1719106233089,-153.0,0.00016749,2]
[330195252,1719106233100,-153.0,0.00016749,2]
[330195253,1719106233109,-153.0,0.00016749,2]
[330195254,1719106233119,-153.0,0.00016749,2]
[330195255,1719106233128,-153.0,0.00016749,2]
[330195256,1719106233138,-153.0,0.00016749,2]
[330195257,1719106233150,-153.0,0.00016749,2]
[330195258,1719106233160,-153.0,0.00016749,2]
[330195259,1719106233169,-153.0,0.00016749,2]
[330195260,1719106233178,-153.0,0.00016749,2]
[330195261,1719106233187,-153.0,0.00016749,2]
[330195262,1719106233197,-153.0,0.00016749,2]
[330195263,1719106233207,-153.0,0.00016749,2]
[330195264,1719106233216,-153.0,0.00016749,2]
[330195265,1719106233227,-153.0,0.00016749,2]
[330195266,1719106233236,-153.0,0.00016749,2]
[330195267,1719106233246,-153.0,0.00016749,2]
[330195268,1719106233258,-881.424,0.00016881,2]
[330195269,1719106233268,-157.74467629,0.00017026,2]
[330195270,1719106233279,-284.35949886,0.00017084,2]
[330195271,1719106233288,-331.8,0.00017097,2]
[330195272,1719106233298,-331.8,0.0001727,2]
[330195273,1719106233310,-500.0,0.00017294,2]
[330195274,1719106233322,-331.8,0.00017443,2]
[330195275,1719106233332,-151.0,0.00017443,2]
[330195276,1719106233342,-620.03847603,0.00017568,2]
[330195277,1719106233353,-331.8,0.00017616,2]
[330195278,1719106233362,-151.0,0.00017616,2]
[330195279,1719106233372,-294.7843092,0.00017747,2]
[330195280,1719106233381,-331.8,0.00017789,2]
[330195281,1719106233393,-151.0,0.00017789,2]
[330195282,1719106233403,-330.08618418,0.000178,2]
[330195283,1719106233412,-502.27327357,0.00017808,2]
[330195284,1719106233421,-330.08618418,0.00017833,2]
[330195285,1719106233430,-420.03125633,0.00017862,2]
[330195286,1719106233439,-195.17109,0.00017866,2]
[330195287,1719106233450,-1320.541305,0.00017866,2]
[330195288,1719106233459,-1304.19345978,0.00017866,2]
[330195334,1719106238826,-154.80649189,0.00014247,2]
[330195336,1719106238837,-95.05322631,0.00017866,2]
[330195504,1719106806233,285.0,0.00025999,60]
[330195775,1719108286309,500.0,0.00014006,2]
[330195776,1719108588098,500.0,0.00014006,2]
[330195864,1719108638609,-500.0,0.0001565,2]
[330195866,1719108638619,-174.1888728,0.00016398,2]
[330195867,1719108638628,-21.29194818,0.0001641,2]
[330195870,1719108638642,-854.70805182,0.0001641,2]
[330195873,1719108638651,-216.64811345,0.00016607,2]
[330195876,1719108638661,-300.0,0.00016858,2]
[330195877,1719108638670,-224.0,0.00016858,2]
[330195879,1719108638679,-153.0,0.00016859,2]
[330195881,1719108638688,-153.0,0.00016859,2]
[330195883,1719108638697,-153.0,0.00016859,2]
[330195885,1719108638707,-153.0,0.00016859,2]
[330195887,1719108638718,-153.0,0.00016859,2]
[330195889,1719108638728,-153.0,0.00016859,2]
[330195891,1719108638737,-153.0,0.00016859,2]
[330195893,1719108638750,-153.0,0.00016859,2]
[330195895,1719108638759,-153.0,0.00016859,2]
[330195897,1719108638769,-153.0,0.00016859,2]
[330195899,1719108638779,-153.0,0.00016859,2]
[330195901,1719108638788,-153.0,0.00016859,2]
[330195903,1719108638798,-153.0,0.00016859,2]
[330195905,1719108638807,-153.0,0.00016859,2]
[330195907,1719108638817,-153.0,0.00016859,2]
[330195909,1719108638827,-153.0,0.00016859,2]
[330195910,1719108638836,-153.0,0.00016859,2]
[330195912,1719108638845,-153.0,0.00016859,2]
[330195914,1719108638855,-153.0,0.00016859,2]
[330195916,1719108638864,-153.0,0.00016859,2]
[330195918,1719108638874,-153.0,0.00016859,2]
[330195920,1719108638883,-153.0,0.00016859,2]
[330195922,1719108638892,-153.0,0.00016859,2]
[330195924,1719108638901,-153.0,0.00016859,2]
[330195926,1719108638911,-153.0,0.00016859,2]
[330195928,1719108638920,-153.0,0.00016859,2]
[330195930,1719108638929,-153.0,0.00016859,2]
[330195932,1719108638938,-153.0,0.00016859,2]
[330195934,1719108638947,-153.0,0.00016859,2]
[330195936,1719108638957,-153.0,0.00016859,2]
[330195937,1719108638967,-153.0,0.00016859,2]
[330195939,1719108638979,-153.0,0.00016859,2]
[330195941,1719108638987,-153.0,0.00016859,2]
[330195943,1719108638997,-153.0,0.00016859,2]
[330195944,1719108639006,-153.0,0.00016859,2]
[330195945,1719108639016,-153.0,0.00016859,2]
[330195946,1719108639025,-153.0,0.00016859,2]
[330195947,1719108639035,-153.0,0.00016859,2]
[330195948,1719108639046,-153.0,0.00016859,2]
[330195949,1719108639056,-153.0,0.00016859,2]
[330195950,1719108639066,-153.0,0.00016859,2]
[330195951,1719108639076,-153.0,0.00016859,2]
[330195952,1719108639086,-153.0,0.00016859,2]
[330195953,1719108639095,-153.0,0.00016859,2]
[330195954,1719108639105,-153.0,0.00016859,2]
[330195955,1719108639114,-153.0,0.00016859,2]
[330195956,1719108639124,-153.0,0.00016859,2]
[330195957,1719108639133,-153.0,0.00016859,2]
[330195958,1719108639143,-153.0,0.00016859,2]
[330195959,1719108639154,-153.0,0.00016859,2]
[330195960,1719108639164,-153.0,0.00016863,2]
[330195961,1719108639173,-153.0,0.00016863,2]
[330195962,1719108639183,-153.0,0.00016863,2]
[330195963,1719108639194,-153.0,0.00016863,2]
[330195964,1719108639203,-153.0,0.00016863,2]
[330195965,1719108639213,-153.0,0.00016863,2]
[330195966,1719108639224,-153.0,0.00016863,2]
[330195967,1719108639234,-153.0,0.00016863,2]
[330195968,1719108639243,-153.0,0.00016863,2]
[330195969,1719108639253,-153.0,0.00016863,2]
[330195970,1719108639263,-153.0,0.00016863,2]
[330195971,1719108639273,-246.17281433,0.00016873,2]
[330195972,1719108639283,-153.0,0.00016898,2]
[330195973,1719108639292,-153.0,0.00016898,2]
[330195974,1719108639302,-153.0,0.00016898,2]
[330195975,1719108639312,-153.0,0.00016898,2]
[330195976,1719108639322,-153.0,0.00016898,2]
[330195977,1719108639332,-153.0,0.00016898,2]
[330195978,1719108639341,-153.0,0.00016898,2]
[330195979,1719108639351,-153.0,0.00016898,2]
[330195980,1719108639361,-153.0,0.00016898,2]
[330195981,1719108639371,-153.0,0.00016898,2]
[330195982,1719108639381,-153.0,0.00016898,2]
[330195983,1719108639391,-153.0,0.00016898,2]
[330195984,1719108639400,-153.0,0.00016898,2]
[330195985,1719108639410,-276.4,0.00017129,2]
[330195986,1719108639420,-500.0,0.00017294,2]
[330195987,1719108639430,-276.4,0.00017299,2]
[330195988,1719108639440,-276.4,0.00017469,2]
[330195989,1719108639449,-276.4,0.00017639,2]
[330195990,1719108639459,-54.40102043,0.00017766,2]
[330196128,1719109832644,-876.0,0.00016786,2]
[330196130,1719109832655,-225.0,0.00016897,2]
[330196132,1719109832664,-153.0,0.00016898,2]
[330196133,1719109832674,-153.0,0.00016898,2]
[330196135,1719109832683,-153.0,0.00016898,2]